Cogmind - Beta 17 @@@ ROGUE MODE // 2026.07.22 @ 04:21:43 Player: Kirbomon Result: Destroyed by D-53 Grenadier with Mini Grenade Launcher Performance ------------- Evolutions (0) 0 Regions Visited (2) 400 Robots Destroyed (22) 110 Value Destroyed (608) 608 Prototype IDs (0) 0 Alien Tech Used (0) 0 Bonus (0) 0 TOTAL SCORE: 1118 Bonus ------- None Cogmind --------- Core Integrity 0/250 Matter 300/300 Energy 100/100 System Corruption 0% Temperature Cool (0) Movement Core (400) Ox7 Location -10/Mines Parts ------- > --- POWER (1) -------- (None) > --- PROPULSION (2) --- (None) > --- UTILITY (2) ------ Large Storage Unit Structural Scanner > --- WEAPON (2) ------- Hammer > --- INVENTORY (15) --- Light Ion Engine Light Ion Engine Compact Wheel Compact Wheel Improved Heat Sink Large Storage Unit Structural Scanner Structural Scanner Terrain Scanner Seismic Detector Small Laser Particle Gun Assault Rifle Hammer Peak State ------------ > --- POWER ------------ Light Ion Engine > --- PROPULSION ------- Light Treads Light Treads > --- UTILITY ---------- Medium Storage Unit Structural Scanner > --- WEAPON ----------- EM Pulse Gun Grenade Launcher > --- INVENTORY -------- Ion Engine Light Ion Engine Compact Wheel Compact Wheel Small Storage Unit Structural Scanner Terrain Scanner Seismic Detector EM Pulse Gun Small Laser [Rating: 8] Favorites ----------- Power Light Ion Engine Engine Light Ion Engine Propulsion Light Treads Treads Light Treads Utility Structural Scanner Device Structural Scanner Storage Large Storage Unit Weapon EM Pulse Gun Energy Gun EM Pulse Gun Ballistic Cannon Light Cannon Launcher Grenade Launcher Impact Weapon Hammer Build | -11 -10 -10 ------- Run | Yrd Mat Min Slots Evolved . | . . . Power . | . . . Propulsion . | . . . Utility . | . . . Weapon . | . . . Parts Attached 13 | 6 6 1 Power 2 | 1 1 . Engine 2 | 1 1 . Core . | . . . Reactor . | . . . Propulsion 2 | 2 . . Treads 2 | 2 . . Leg . | . . . Wheel . | . . . Hover . | . . . Flight . | . . . Utility 4 | 1 3 . Device 1 | . 1 . Storage 3 | 1 2 . Processor . | . . . Hackware . | . . . Protection . | . . . Artifact . | . . . Weapon 5 | 2 2 1 Energy Gun 2 | 2 . . Energy Cannon . | . . . Ballistic Gun . | . . . Ballistic Cannon 1 | . 1 . Launcher 1 | . 1 . Special Weapon . | . . . Impact Weapon 1 | . . 1 Slashing Weapon . | . . . Piercing Weapon . | . . . Special Melee Weapon . | . . . Unidentified Prototypes . | . . . Parts Lost 8 | . 3 5 Power 2 | . 1 1 Propulsion 2 | . . 2 Utility . | . . . Weapon 4 | . 2 2 Highest Loss Streak 5 | . 2 5 To Critical Strikes . | . . . Average Backups 9 | 2 10 12 Power 1 | . 1 2 Propulsion 1 | 1 2 2 Utility 4 | . 4 6 Weapon 1 | . 1 2 Tool/Special . | . . . Unused Backups 12 | . . 12 Power 2 | . . 2 Propulsion 2 | . . 2 Utility 6 | . . 6 Weapon 2 | . . 2 Tool/Special . | . . . Average Slot Usage (%) 97 | . 98 93 Engine 13 | . 14 13 Treads 27 | . 28 23 Device 12 | . 12 14 Storage 14 | . 14 14 Energy Gun 16 | . 16 14 Ballistic Cannon 2 | . 1 9 Launcher 8 | . 9 . Peak Build Rating 8 | 6 8 8 Average Rating 7 | 4 7 7 On Entrance 4 | . 6 8 Avg Prop Armor Cover (%) . | . . . Naked Turns . | . . . Heaviest Build 31 | 12 31 31 Greatest Support 40 | 40 40 40 Greatest Overweight (x) 8 | . . 8 Average Overweight (x) . | . . . Largest Inventory Capacity 15 | 8 15 15 Average Capacity 13 | 7 14 15 Most Carried 14 | 4 13 14 Average Carried 10 | 2 10 12 Final Capacity 15 | 8 15 15 Final Carried 14 | 4 13 14 Class Distribution -------------------- 100% | Mutant Dominant Class ---------------- Mutant | -10/Materials Mutant | -10/Mines Resources | -11 -10 -10 ----------- Run | Yrd Mat Min Matter Collected 394 | 207 157 30 Remotely . | . . . Salvage Created 713 | . 673 40 Parts 55 | . 54 1 Haulers Intercepted . | . . . Recyclers Shooed . | . . . Parts Field Recycled . | . . . Retrieved Matter . | . . . Parts Self-Destructed . | . . . Prevented . | . . . Parts Restored . | . . . Kills | -11 -10 -10 ------- Run | Yrd Mat Min Combat Hostiles Destroyed 13 | . 12 1 Guns 6 | . 5 1 Cannons 1 | . 1 . AOE 5 | . 5 . Classes Destroyed 6 | . 5 1 Worker 1 | . 1 . Builder 5 | . 5 . Mechanic 1 | . 1 . Watcher 2 | . 2 . Grunt 12 | . 12 . Demolisher 1 | . . 1 Best Kill Streak 6 | . 6 1 Combat Bots Only 6 | . 6 1 Max Kills in Single Turn 2 | . 2 1 Gunslinging . | . . . Exploded 2 | . 2 . Melee . | . . . Uniques/NPCs Destroyed . | . . . Combat | -11 -10 -10 -------- Run | Yrd Mat Min Hostile Shots Fired 68 | . 58 10 Missed 19 | . 18 1 Hits 49 | . 40 9 Projectile 49 | . 40 9 AOE 12 | . . 12 Damage Taken 981 | . 522 459 Core 250 | . 104 146 Absorbed by Shields . | . . . Core Remaining (%) 100 | 100 . . Volleys Fired 51 | . 46 5 Largest 2 | . 2 1 Hottest 80 | . 80 40 Shots Fired 78 | . 73 5 Gun 65 | . 60 5 Cannon 11 | . 11 . Launcher 2 | . 2 . Special . | . . . Kinetic 11 | . 11 . Thermal . | . . . Explosive 2 | . 2 . Electromagnetic 65 | . 60 5 Robot Hit Streak 7 | . 7 6 Robot Miss Streak 3 | . 3 . Penetration Max . | . . . Secondary Targets . | . . . Shots Hit Robots 46 | . 41 5 Core Hits 32 | . 29 3 Critical Kills . | . . . Critical Parts Destroyed . | . . . Critical Strikes 1 | . 1 . Corrupt 1 | . 1 . Melee Attacks . | . . . Impact . | . . . Slashing . | . . . Piercing . | . . . Sneak Attacks . | . . . Combat Hostiles . | . . . Follow-up Attacks . | . . . Damage Inflicted 998 | . 942 56 Guns 527 | . 471 56 Cannons 143 | . 143 . Explosions 328 | . 328 . Melee . | . . . Ramming . | . . . Kinetic 143 | . 143 . Thermal 222 | . 222 . Explosive 106 | . 106 . Electromagnetic 527 | . 471 56 Impact . | . . . Slashing . | . . . Piercing . | . . . Highest Corruption . | . . . Average Corruption . | . . . Corruption Purged . | . . . Corruption Blocked . | . . . Overload Shots . | . . . Overflow Damage . | . . . Projectiles . | . . . Explosions . | . . . Melee . | . . . Knockbacks 5 | . 5 . Impact . | . . . Kinetic 5 | . 5 . Secondary . | . . . Self-Inflicted Damage 40 | . 40 . Shots 2 | . 2 . Rammed . | . . . Targets Rammed . | . . . Kicked . | . . . Crushed . | . . . Highest Temperature 287 | . 287 . Average Temperature 85 | . 85 . Received Heat Transfer 240 | . 240 . Siege Activations . | . . . Martial Activations . | . . . Shielding Activations . | . . . Robots Disrupted . | . . . Combat Hostiles . | . . . Robots Corrupted 1 | . 1 . Combat Hostiles 1 | . 1 . Parts Fried . | . . . Impact Corruptions . | . . . Robots Melted . | . . . Combat Hostiles . | . . . Parts Melted . | . . . Heat Transferred 200 | . 200 . Parts Sabotaged . | . . . Parts Stolen . | . . . Parts Stripped . | . . . Power Chain Reactions 3 | . 3 . Alert | -11 -10 -10 ------- Run | Yrd Mat Min Maximum Alert Level . | . . . Low Security (%) 100 | 100 100 100 Level 1 . | . . . Level 2 . | . . . Level 3 . | . . . Level 4 . | . . . Level 5 . | . . . High Security . | . . . Max Security . | . . . Peak Influence 159 | . 159 58 Initial 58 | . . 58 Average 38 | . 41 26 Influence Increases 491 | . 471 20 Destroy 0b10 Robot/C 260 | . 240 20 Destroy 0b10 Robot/NC 45 | . 45 . Destroy Leader 54 | . 54 . Successful Hack 8 | . 8 . Disable Machine 75 | . 75 . Destroy Structure 19 | . 19 . Lose Combat Pursuer 30 | . 30 . Influence Decreases 491 | . 320 171 Entered New Map 93 | . . 93 Time Decay 360 | . 290 70 Lost Part 38 | . 30 8 Squads Dispatched 3 | . 3 . Investigation 3 | . 3 . Extermination . | . . . Reinforcement . | . . . Assault . | . . . Garrison . | . . . Intercept . | . . . Searches Triggered . | . . . Construction Impeded . | . . . Haulers Reinforced . | . . . Active Scanning Responses . | . . . Cargo Convoy Interrupts . | . . . Stealth | -11 -10 -10 --------- Run | Yrd Mat Min Distress Signals 1 | . . 1 Communications Jammed . | . . . Distress Signals . | . . . Times Spotted 27 | . 25 2 Peak Tracking Total 8 | . 8 1 Tactical Retreats 2 | . 2 . Traps | -11 -10 -10 ------- Run | Yrd Mat Min Traps Triggered 2 | . 2 . Indirectly . | . . . Trap Hack Attempts . | . . . Triggered . | . . . Disarmed . | . . . Reprogrammed . | . . . Reused . | . . . Traps Extracted . | . . . Installed . | . . . Triggered . | . . . Machines | -11 -10 -10 ---------- Run | Yrd Mat Min Machines Disabled 5 | . 5 . Max in Single Turn 1 | . 1 . Machines Repaired . | . . . Machines Dismantled . | . . . Machines Sabotaged . | . . . Overloaded Fab Kills . | . . . Hacking | -11 -10 -10 --------- Run | Yrd Mat Min Machines Accessed 4 | . 4 . Terminals 3 | . 3 . Fabricators . | . . . Repair Stations . | . . . Recycling Units 1 | . 1 . Scanalyzers . | . . . Garrison Access . | . . . Total Hacks 8 | . 8 . Successful 4 | . 4 . Failed 4 | . 4 . Catastrophic 2 | . 2 . Database Lockouts . | . . . Manual 3 | . 3 . Terminals 6 | . 6 . Fabricators . | . . . Repair Stations . | . . . Recycling Units 2 | . 2 . Scanalyzers . | . . . Garrison Access . | . . . Terminal Hacks 2 | . 2 . Transport Status 1 | . 1 . Recall Investigation 1 | . 1 . Fabricator Hacks . | . . . Repair Station Hacks . | . . . Recycling Unit Hacks 2 | . 2 . Report Inventory 1 | . 1 . Retrieve Components 1 | . 1 . Scanalyzer . | . . . Garrison Access Hacks . | . . . Unauthorized Hacks . | . . . Terminals . | . . . Fabricators . | . . . Repair Stations . | . . . Recycling Units . | . . . Scanalyzers . | . . . Garrison Access . | . . . Data Cores Recovered . | . . . Used . | . . . Hacking Detections 1 | . 1 . Full Trace Events 1 | . 1 . Feedback Events . | . . . Feedback Blocked . | . . . Robot Schematics Acquired . | . . . Robots Built . | . . . Authchips . | . . . Time . | . . . Total Robot Build Rating . | . . . Part Schematics Acquired . | . . . Parts Built . | . . . Authchips . | . . . Time . | . . . Total Part Build Rating . | . . . Part Studies Acquired . | . . . Parts Repaired . | . . . Time . | . . . Parts Recycled . | . . . Recycled Matter . | . . . Retrieved Matter . | . . . Retrieved Components 5 | . 5 . Parts Scanalyzed . | . . . Part Schematics Acquired . | . . . Parts Damaged . | . . . Bothacking | -11 -10 -10 ------------ Run | Yrd Mat Min Used RIF Installer . | . . . Robots Hacked . | . . . Non-combat . | . . . Combat . | . . . Robot Hacks Applied . | . . . Relay Couplers Released . | . . . Fabnet Peak Effective % . | . . . Robots Rewired . | . . . Allies Hacked . | . . . Hacks Repelled . | . . . Allies | -11 -10 -10 -------- Run | Yrd Mat Min Total Allies . | . . . Largest Group . | . . . Highest-Rated Group . | . . . Highest-Rated Ally . | . . . Total Orders . | . . . Ally Attacks . | . . . Total Damage . | . . . Kills . | . . . Allies Corrupted . | . . . Allies Melted . | . . . Intel | -11 -10 -10 ------- Run | Yrd Mat Min Active Infowar (turns) 1469 | . 1317 152 Structural 1469 | . 1317 152 Robot Analysis Total . | . . . Derelict Logs Recovered . | . . . Drone Launches . | . . . Drone Recoveries . | . . . Exploration | -11 -10 -10 ------------- Run | Yrd Mat Min Turns Passed 1664 | 76 1436 152 Spaces Moved 671 | 43 554 74 Core 5 | 4 . 1 Treads 666 | 39 554 73 Legs . | . . . Wheels . | . . . Hover . | . . . Flight . | . . . Fastest Speed 50 | 50 160 160 Average Speed 160 | 149 160 174 Slowest Speed 450 | 160 160 450 Overloaded Moves . | . . . Propulsion Burnouts . | . . . Robots Hopped . | . . . Potential Cave-ins . | . . . Cave-ins Triggered . | . . . Exploration Rate (%) 31 | 4 77 12 Regions Visited 2 Branch Regions 1 Pre-discovered Areas . | . . . Known Exits Taken . | . . . Unknown Exits Taken 2 | 1 1 . Scrap Searched 1 | . . 1 Spaces Dug . | . . . Terrain Destroyed 18 | . 18 . Melee . | . . . Projectile . | . . . AOE 18 | . 18 . Terrain Rammed . | . . . Walls Destroyed . | . . . Machines Disabled . | . . . Actions | -11 -10 -10 --------- Run | Yrd Mat Min Total 1174 | 52 1031 91 Wait 417 | . 409 8 Move 669 | 42 553 74 Hop . | . . . Pick Up 19 | 4 13 2 Fast Attach 8 | 6 2 . Attach 4 | . 3 1 Detach 1 | . 1 . Swap 2 | . 2 . Drop 2 | . 2 . Fire 51 | . 46 5 Melee . | . . . Ram . | . . . Kick . | . . . Crush . | . . . Escape Stasis . | . . . Rewire 1 | . . 1 Trap . | . . . Miscellaneous . | . . . Route ------- -11/Scrapyard -10/Materials (discovered 4 exits: [*Mat x3] / [*Min]) -10/Mines History --------- Turn | Location | Event 26 | -11/Scrapyard | Discovered new exit (range 16) 77 | -11/Scrapyard | Entered Materials 318 | -10/Materials | Build established: Mutant 324 | -10/Materials | Discovered new exit (range 14) 895 | -10/Materials | Discovered new exit (range 15) 1193 | -10/Materials | Discovered new exit (range 7) 1342 | -10/Materials | Discovered new exit (range 16) 1513 | -10/Materials | Entered Mines 1514 | -10/Mines | Assembled infested the area 1519 | -10/Mines | Assisted by a Guerilla fighting off Assembled 1628 | -10/Mines | Core integrity fell below 50% 1662 | -10/Mines | Core integrity fell below 20% 1665 | -10/Mines | Destroyed by D-53 Grenadier with Mini Grenade Launcher Last Messages --------------- 01632_ D-53 Grenadier destroyed. 01633_ The unstable cave ceiling collapses. 01634_ Acquired 30 matter. 01637_ The unstable cave ceiling collapses. 01653_ Searching scrap... 01653_ Found Sml. Laser. 01653_ Found Lgt. Assault Rifle. 01653_ Found Hammer. 01653_ Found Assault Rifle. 01653_ Found 51 Matter. 01655_ U-05 Engineer builds a Wall. 01657_ Lgt. Treads destroyed. 01657_ Ion Engine destroyed. 01658_ Acquired Assault Rifle. 01659_ U-05 Engineer destroyed. 01661_ The unstable cave ceiling collapses. 01661_ T-07 Excavator destroyed. 01663_ The unstable cave ceiling collapses. 01663_ EM Pulse Gun destroyed. 01664_ Acquired Hammer. Map ----- +----------------------------------------------------+ | | | | | | | | | | | | | | | | | | | | | ????????###### #####?????????????????????????????? | | ????????## ###?????????????????????????????? | | ??######## ##?????????????????????????????? | | ??######## ##?????????????????????????????? | | ?? "%" *% ##?????????????????????????????? | | ?????????## ##?????????????????????????????? | | ?????????## ##?????????????????????????????? | | ?????????### # ##?????????????????????????????? | | ?????????#### # #####????????????????????######??? | | ??????????##### ###????####???????????#########? | | ?????????????## ############???????##### ##### | | ?????????????## ####### #######???##### ### | | ?????????????## ! ### ######?#### ## | | ?????????????##k ### ####### ## | | ?????????????## ! % ##### #### ### | | ?????????????### =#### @[ ## #########? | | ?????????????######## # ########? | | ??????????????####### =% ###?????? | | ???????????????????### ##?????? | | ???????????????????#### ##?????? | | ???????????????????? ####%### ### ###?????? | | ????????????????????? # ## ##########?????? | | ???????????????????????# #### ###########??????? | | ???????????????????????# ########?????????????? | | ??????????????????????? |= ??####???????????????? | | ??????????????????????? %d #?????????????????????? | | ??????????????????????? ! ??????????????????????? | | ??????????????????????? % ??????????????????????? | | ???????????????????????? ??????????????????????? | | ???????????????????????? ??????????????????????? | | ???????????????????????? ??????????????????????? | | ???????????????????????? $ ??????????????????????? | | ???????????????????????? ??????????????????????? | | ?????????????????????????????????????????????????? | | ?????????????????????????????????????????????????? | | ?????????????????????????????????????????????????? | | ?????????????????????????????????????????????????? | | ?????????????????????????????????????????????????? | | ?????????????????????????????????????????????????? | | ?????????????????????????????????????????????????? | +----------------------------------------------------+ Best States ------------- Heat Dissipation 25 Energy Generation 10 Energy Capacity 250 Matter Stores 300 Matter Capacity 300 Sight Range 16 Terrain Scan Density 10 Evasion (%) 40 Recoil Reduction 2 Item Schematics ----------------- None Robot Schematics ------------------ None Fabricated ------------ Nothing Repaired ---------- Nothing Studied --------- None Alien Tech Used ----------------- None Achievements -------------- None Challenges ------------ None Game ------ Seed OvertunedBiomechanicalBlade Manual? 0 Play Time 00:17:39 Cumulative 9.4 hours Start 2026.07.22 @ 04:04:58 End 2026.07.22 @ 04:21:43 Sessions 1 Manual Loads 0 Difficulty Rogue Special Mode None Game No. 13 Rogue 6 Adventurer 7 Explorer 0 Win Type - Total 0 Types 0/0/0/0/0/0/0/0/0/0 Lore% 4 Gallery% 10 Achievement% 12 Wizard Run 0 Options --------- Layout 0 ASCII 0 Keyboard 0 Movement Arrows Keybinds 0 Fullscreen 2 Font 18/SmallcapsGlow Map View 38x25 Zoom Use 87% Tactical HUD 1 Map Filters NONE Filters NONE Steam 1 RUN: e4302126-b201-486e-8430-93d07b6ca911